[Event "Live Chess"]
[Site "Chess.com"]
[Date "2023.05.21"]
[Round "-"]
[White "Hussamalhaidar"]
[Black "domrobson"]
[Result "0-1"]
[WhiteElo "1112"]
[BlackElo "1756"]
[TimeControl "300"]
[EndTime "18:53:43 PDT"]
[Termination "domrobson won on time"]

1. b3 {[%clk 0:04:57.7]} 1... e5 {[%clk 0:04:56.3]} 2. Bb2 {[%clk 0:04:57]} 2...
Nc6 {[%clk 0:04:53.5]} 3. e3 {[%clk 0:04:55]} 3... d6 {[%clk 0:04:51.9]} 4. Be2
{[%clk 0:04:51]} 4... Nf6 {[%clk 0:04:50.5]} 5. d3 {[%clk 0:04:49.9]} 5... Be6
{[%clk 0:04:48.5]} 6. Nf3 {[%clk 0:04:48.7]} 6... h6 {[%clk 0:04:47.1]} 7. Nbd2
{[%clk 0:04:47.4]} 7... Qd7 {[%clk 0:04:46]} 8. O-O {[%clk 0:04:43.8]} 8...
O-O-O {[%clk 0:04:44.3]} 9. a4 {[%clk 0:04:37]} 9... g5 {[%clk 0:04:41]} 10. a5
{[%clk 0:04:18.1]} 10... a6 {[%clk 0:04:39.2]} 11. c4 {[%clk 0:04:08.1]} 11...
g4 {[%clk 0:04:36.6]} 12. Nh4 {[%clk 0:03:55.6]} 12... Be7 {[%clk 0:04:33.6]}
13. g3 {[%clk 0:03:42]} 13... h5 {[%clk 0:04:30.7]} 14. Ng2 {[%clk 0:03:34.6]}
14... d5 {[%clk 0:04:25.9]} 15. f4 {[%clk 0:03:22]} 15... Rh6 {[%clk 0:04:07.1]}
16. f5 {[%clk 0:03:17.2]} 16... Bxf5 {[%clk 0:04:04.3]} 17. e4 {[%clk
0:03:09.8]} 17... dxe4 {[%clk 0:04:02.8]} 18. dxe4 {[%clk 0:03:06.5]} 18... Nxe4
{[%clk 0:03:59.1]} 19. Nxe4 {[%clk 0:02:58.2]} 19... Qxd1 {[%clk 0:03:54]} 20.
Raxd1 {[%clk 0:02:49.3]} 20... Rxd1 {[%clk 0:03:52]} 21. Bxd1 {[%clk 0:02:42.8]}
21... Bxe4 {[%clk 0:03:49.4]} 22. Rxf7 {[%clk 0:02:40.7]} 22... Rf6 {[%clk
0:03:43.8]} 23. Rxe7 {[%clk 0:02:32.9]} 23... Nxe7 {[%clk 0:03:40.4]} 24. Bxe5
{[%clk 0:02:31.7]} 24... Re6 {[%clk 0:03:38.7]} 25. Bf4 {[%clk 0:02:24.7]} 25...
Bxg2 {[%clk 0:03:36.8]} 26. Kxg2 {[%clk 0:02:23.2]} 26... Nf5 {[%clk 0:03:33.3]}
27. Kf2 {[%clk 0:02:08.7]} 27... h4 {[%clk 0:03:21.1]} 28. Bc2 {[%clk
0:02:02.4]} 28... Nd4 {[%clk 0:03:16.7]} 29. Bd1 {[%clk 0:01:46]} 29... hxg3+
{[%clk 0:03:15.2]} 30. hxg3 {[%clk 0:01:42.3]} 30... Rf6 {[%clk 0:03:13.5]} 31.
Bxg4+ {[%clk 0:01:38.8]} 31... Kb8 {[%clk 0:03:12.5]} 32. Ke3 {[%clk 0:01:32.2]}
32... Nxb3 {[%clk 0:03:11.2]} 33. Be5 {[%clk 0:01:21.9]} 33... Rg6 {[%clk
0:03:04.2]} 34. Bh5 {[%clk 0:01:15.1]} 34... Rg5 {[%clk 0:03:01.9]} 35. Kf4
{[%clk 0:01:10.4]} 35... Rxh5 {[%clk 0:03:00.8]} 36. g4 {[%clk 0:01:09.5]} 36...
Rh1 {[%clk 0:02:54.6]} 37. g5 {[%clk 0:01:07.7]} 37... Rg1 {[%clk 0:02:49]} 38.
Kf5 {[%clk 0:00:59.3]} 38... Nxa5 {[%clk 0:02:47.6]} 39. g6 {[%clk 0:00:54.9]}
39... Nxc4 {[%clk 0:02:46.2]} 40. Bd4 {[%clk 0:00:50.4]} 40... b5 {[%clk
0:02:38.9]} 41. Bxg1 {[%clk 0:00:48.1]} 41... Nd6+ {[%clk 0:02:35.6]} 42. Kf6
{[%clk 0:00:45.2]} 42... a5 {[%clk 0:02:28.6]} 43. g7 {[%clk 0:00:43.5]} 43...
Ne8+ {[%clk 0:02:27.3]} 44. Kf7 {[%clk 0:00:40.7]} 44... Nxg7 {[%clk 0:02:26.5]}
45. Kxg7 {[%clk 0:00:39.7]} 45... b4 {[%clk 0:02:25.8]} 46. Bc5 {[%clk 0:00:21]}
46... Kb7 {[%clk 0:02:20.9]} 47. Kf6 {[%clk 0:00:20]} 47... Kc6 {[%clk
0:02:20.3]} 48. Bd4 {[%clk 0:00:18.3]} 48... Kd5 {[%clk 0:02:18.7]} 49. Bb2
{[%clk 0:00:16.5]} 49... c5 {[%clk 0:02:17.9]} 50. Kf5 {[%clk 0:00:15.3]} 50...
a4 {[%clk 0:02:15.1]} 51. Kf4 {[%clk 0:00:14.4]} 51... a3 {[%clk 0:02:14.6]} 52.
Ba1 {[%clk 0:00:12.8]} 52... b3 {[%clk 0:02:13.7]} 53. Ke3 {[%clk 0:00:10.2]}
53... b2 {[%clk 0:02:13.1]} 54. Bxb2 {[%clk 0:00:09]} 54... axb2 {[%clk
0:02:12.2]} 0-1

[Event "Live Chess"]
[Site "Chess.com"]
[Date "2023.05.21"]
[Round "-"]
[White "jimwad"]
[Black "blowerd"]
[Result "1-0"]
[WhiteElo "1227"]
[BlackElo "1339"]
[TimeControl "300"]
[EndTime "18:53:50 PDT"]
[Termination "jimwad won on time"]

1. d4 {[%clk 0:04:57.1]} 1... d5 {[%clk 0:04:58]} 2. c4 {[%clk 0:04:55.9]} 2...
e6 {[%clk 0:04:55.8]} 3. Nc3 {[%clk 0:04:54.7]} 3... Nf6 {[%clk 0:04:54.3]} 4.
Bg5 {[%clk 0:04:53.6]} 4... h6 {[%clk 0:04:51.8]} 5. Bxf6 {[%clk 0:04:52.3]}
5... Qxf6 {[%clk 0:04:50.7]} 6. Nf3 {[%clk 0:04:51.6]} 6... Bb4 {[%clk
0:04:46.1]} 7. e3 {[%clk 0:04:47.2]} 7... O-O {[%clk 0:04:42.1]} 8. Be2 {[%clk
0:04:45.9]} 8... dxc4 {[%clk 0:04:38]} 9. Bxc4 {[%clk 0:04:43.3]} 9... Nd7
{[%clk 0:04:35]} 10. O-O {[%clk 0:04:41.8]} 10... Bxc3 {[%clk 0:04:32.6]} 11.
bxc3 {[%clk 0:04:39.5]} 11... b6 {[%clk 0:04:31]} 12. Qc2 {[%clk 0:04:35]} 12...
Bb7 {[%clk 0:04:28.3]} 13. Be2 {[%clk 0:04:32.1]} 13... c5 {[%clk 0:04:21.1]}
14. Rab1 {[%clk 0:04:26.1]} 14... cxd4 {[%clk 0:04:17.2]} 15. cxd4 {[%clk
0:04:24.2]} 15... Rac8 {[%clk 0:04:14.2]} 16. Qa4 {[%clk 0:04:22]} 16... Bxf3
{[%clk 0:03:51.2]} 17. Bxf3 {[%clk 0:04:20.1]} 17... Rc7 {[%clk 0:03:44.7]} 18.
Rbc1 {[%clk 0:04:10.9]} 18... Rfc8 {[%clk 0:03:23.7]} 19. Rxc7 {[%clk
0:04:07.8]} 19... Rxc7 {[%clk 0:03:21.9]} 20. Qa3 {[%clk 0:03:37.2]} 20... e5
{[%clk 0:03:16.6]} 21. Rc1 {[%clk 0:03:27.1]} 21... Rxc1+ {[%clk 0:03:08.6]} 22.
Qxc1 {[%clk 0:03:24.3]} 22... exd4 {[%clk 0:03:07.6]} 23. Qc8+ {[%clk
0:03:22.4]} 23... Kh7 {[%clk 0:03:03.5]} 24. Be4+ {[%clk 0:03:15.1]} 24... g6
{[%clk 0:03:00.3]} 25. Qxd7 {[%clk 0:03:11.6]} 25... dxe3 {[%clk 0:02:59.2]} 26.
fxe3 {[%clk 0:03:05.2]} 26... Qa1+ {[%clk 0:02:52.1]} 27. Kf2 {[%clk 0:03:01.6]}
27... Qxa2+ {[%clk 0:02:51]} 28. Kf3 {[%clk 0:02:59.5]} 28... Kg7 {[%clk
0:02:32.7]} 29. Qd4+ {[%clk 0:02:57.1]} 29... Kh7 {[%clk 0:02:25.4]} 30. h4
{[%clk 0:02:50.9]} 30... Qe6 {[%clk 0:02:17.8]} 31. h5 {[%clk 0:02:43]} 31... f5
{[%clk 0:01:44.1]} 32. hxg6+ {[%clk 0:02:40.2]} 32... Kxg6 {[%clk 0:01:34.3]}
33. Bd5 {[%clk 0:02:35.2]} 33... Qf6 {[%clk 0:01:11.8]} 34. Qf4 {[%clk
0:02:21.6]} 34... a5 {[%clk 0:01:01.9]} 35. Qg3+ {[%clk 0:02:16.5]} 35... Qg5
{[%clk 0:00:55.5]} 36. Qd6+ {[%clk 0:02:13.9]} 36... Qf6 {[%clk 0:00:52]} 37.
Qg3+ {[%clk 0:01:53.5]} 37... Qg5 {[%clk 0:00:49.7]} 38. Qc7 {[%clk 0:01:35]}
38... Qg4+ {[%clk 0:00:45]} 39. Kf2 {[%clk 0:01:33.4]} 39... Qh4+ {[%clk
0:00:33.8]} 40. Ke2 {[%clk 0:01:22.9]} 40... Qg4+ {[%clk 0:00:28.7]} 41. Bf3
{[%clk 0:01:21.5]} 41... Qb4 {[%clk 0:00:23.7]} 42. Qc6+ {[%clk 0:01:12.5]}
42... Kg5 {[%clk 0:00:21.9]} 43. Qd5 {[%clk 0:00:54.8]} 43... a4 {[%clk
0:00:20.3]} 44. Qg8+ {[%clk 0:00:51.7]} 44... Kf6 {[%clk 0:00:18.5]} 45. Qh8+
{[%clk 0:00:50.4]} 45... Ke6 {[%clk 0:00:15.2]} 46. Qxh6+ {[%clk 0:00:49.4]}
46... Ke5 {[%clk 0:00:13.8]} 47. Qf4+ {[%clk 0:00:48]} 47... Ke6 {[%clk
0:00:11.5]} 48. Qxb4 {[%clk 0:00:46.5]} 48... b5 {[%clk 0:00:07.8]} 49. Qxb5
{[%clk 0:00:45.1]} 49... a3 {[%clk 0:00:06.4]} 50. Qb3+ {[%clk 0:00:43.1]} 50...
Ke7 {[%clk 0:00:02.9]} 51. Qxa3+ {[%clk 0:00:41.8]} 51... Kf6 {[%clk 0:00:02.4]}
52. Qd6+ {[%clk 0:00:39.8]} 52... Kg5 {[%clk 0:00:01.2]} 53. Qf4+ {[%clk
0:00:35.7]} 1-0

[Event "Live Chess"]
[Site "Chess.com"]
[Date "2023.05.21"]
[Round "-"]
[White "ChessClubLive"]
[Black "GEMdzq"]
[Result "0-1"]
[WhiteElo "1451"]
[BlackElo "2266"]
[TimeControl "300"]
[EndTime "18:54:04 PDT"]
[Termination "GEMdzq won by resignation"]

1. e4 {[%clk 0:04:55.7]} 1... d6 {[%clk 0:04:58.3]} 2. f4 {[%clk 0:04:53.2]}
2... Nf6 {[%clk 0:04:55.8]} 3. Nc3 {[%clk 0:04:50.3]} 3... g6 {[%clk 0:04:54.2]}
4. Nf3 {[%clk 0:04:48.2]} 4... Bg7 {[%clk 0:04:52.7]} 5. Bc4 {[%clk 0:04:47.6]}
5... O-O {[%clk 0:04:50.2]} 6. O-O {[%clk 0:04:46.9]} 6... c5 {[%clk 0:04:43.9]}
7. d3 {[%clk 0:04:45.5]} 7... Nc6 {[%clk 0:04:42.3]} 8. Be3 {[%clk 0:04:35.6]}
8... Ng4 {[%clk 0:04:39.7]} 9. Bd2 {[%clk 0:04:28]} 9... a6 {[%clk 0:04:35.8]}
10. h3 {[%clk 0:04:27]} 10... Nf6 {[%clk 0:04:34.3]} 11. a3 {[%clk 0:04:25.1]}
11... b5 {[%clk 0:04:32.7]} 12. Ba2 {[%clk 0:04:23.6]} 12... Rb8 {[%clk
0:04:27.6]} 13. b4 {[%clk 0:04:19.5]} 13... cxb4 {[%clk 0:04:21.8]} 14. axb4
{[%clk 0:04:16.2]} 14... Nxb4 {[%clk 0:04:19.4]} 15. Rb1 {[%clk 0:04:08.1]}
15... Nc6 {[%clk 0:04:16.4]} 16. Nd5 {[%clk 0:03:57.7]} 16... Nxd5 {[%clk
0:04:13.6]} 17. exd5 {[%clk 0:03:56.7]} 17... Nd4 {[%clk 0:04:10.2]} 18. Be3
{[%clk 0:03:48.4]} 18... Nf5 {[%clk 0:04:07.7]} 19. Bf2 {[%clk 0:03:41.1]} 19...
h5 {[%clk 0:04:03.2]} 20. c3 {[%clk 0:03:29.4]} 20... Qa5 {[%clk 0:03:53.4]} 21.
Qb3 {[%clk 0:03:07]} 21... Qxc3 {[%clk 0:03:49.3]} 22. Qxc3 {[%clk 0:03:05.5]}
22... Bxc3 {[%clk 0:03:48.9]} 23. d4 {[%clk 0:02:59.8]} 23... Bd7 {[%clk
0:03:46.3]} 24. Rfc1 {[%clk 0:02:44.8]} 24... b4 {[%clk 0:03:44.4]} 25. g4
{[%clk 0:02:37]} 25... hxg4 {[%clk 0:03:39.9]} 26. hxg4 {[%clk 0:02:36.2]} 26...
Nh6 {[%clk 0:03:37.3]} 27. g5 {[%clk 0:02:22.6]} 27... Nf5 {[%clk 0:03:36.1]}
0-1

[Event "Live Chess"]
[Site "Chess.com"]
[Date "2023.05.21"]
[Round "-"]
[White "therealab0ne"]
[Black "worldchessleaguelive"]
[Result "1/2-1/2"]
[WhiteElo "724"]
[BlackElo "1371"]
[TimeControl "300"]
[EndTime "18:54:21 PDT"]
[Termination "Game drawn - insufficient material"]

1. e4 {[%clk 0:04:59.3]} 1... d5 {[%clk 0:04:58.5]} 2. exd5 {[%clk 0:04:58.1]}
2... Qxd5 {[%clk 0:04:57.5]} 3. Nc3 {[%clk 0:04:57.6]} 3... Qd8 {[%clk
0:04:56.7]} 4. d4 {[%clk 0:04:57]} 4... Nf6 {[%clk 0:04:56.2]} 5. Nf3 {[%clk
0:04:56.5]} 5... e6 {[%clk 0:04:55.9]} 6. Bg5 {[%clk 0:04:54.9]} 6... Be7 {[%clk
0:04:54.8]} 7. Bxf6 {[%clk 0:04:54.3]} 7... Bxf6 {[%clk 0:04:54.1]} 8. Bc4
{[%clk 0:04:53.5]} 8... c6 {[%clk 0:04:52.9]} 9. O-O {[%clk 0:04:52.8]} 9... b5
{[%clk 0:04:51.6]} 10. Bb3 {[%clk 0:04:51.1]} 10... a5 {[%clk 0:04:50.7]} 11. a3
{[%clk 0:04:49.8]} 11... a4 {[%clk 0:04:49.6]} 12. Ba2 {[%clk 0:04:48.6]} 12...
Bb7 {[%clk 0:04:49.1]} 13. Re1 {[%clk 0:04:46.5]} 13... O-O {[%clk 0:04:48.7]}
14. h3 {[%clk 0:04:45.9]} 14... Nd7 {[%clk 0:04:47.7]} 15. Ne5 {[%clk
0:04:39.2]} 15... Nxe5 {[%clk 0:04:46.2]} 16. dxe5 {[%clk 0:04:38.5]} 16... Qxd1
{[%clk 0:04:43.7]} 17. Raxd1 {[%clk 0:04:37.1]} 17... Be7 {[%clk 0:04:43.1]} 18.
Rd7 {[%clk 0:04:26.6]} 18... b4 {[%clk 0:04:35.7]} 19. Rxe7 {[%clk 0:04:06.4]}
19... bxc3 {[%clk 0:04:32.1]} 20. Rxb7 {[%clk 0:04:01.2]} 20... cxb2 {[%clk
0:04:30.7]} 21. Rb1 {[%clk 0:03:56.4]} 21... Rab8 {[%clk 0:04:28.4]} 22. R1xb2
{[%clk 0:03:51.4]} 22... Rxb7 {[%clk 0:04:23.8]} 23. Rxb7 {[%clk 0:03:50.1]}
23... Rc8 {[%clk 0:04:19.7]} 24. Kf1 {[%clk 0:03:46.2]} 24... g6 {[%clk
0:04:18.7]} 25. Ke2 {[%clk 0:03:45]} 25... Kg7 {[%clk 0:04:17.9]} 26. f4 {[%clk
0:03:42.1]} 26... Kh6 {[%clk 0:04:17.3]} 27. h4 {[%clk 0:03:41.5]} 27... Kh5
{[%clk 0:04:16.2]} 28. g3 {[%clk 0:03:40.9]} 28... Kg4 {[%clk 0:04:14.9]} 29.
Rxf7 {[%clk 0:03:17.3]} 29... Kxg3 {[%clk 0:04:10.9]} 30. Bxe6 {[%clk
0:03:10.1]} 30... Rb8 {[%clk 0:03:59.6]} 31. Rxh7 {[%clk 0:03:01.4]} 31... Kxf4
{[%clk 0:03:54.9]} 32. Re7 {[%clk 0:02:42.3]} 32... Kxe5 {[%clk 0:03:49.4]} 33.
Ke3 {[%clk 0:02:33.4]} 33... Kf6 {[%clk 0:03:43.6]} 34. Rf7+ {[%clk 0:02:02]}
34... Kxe6 {[%clk 0:03:40.1]} 35. Rg7 {[%clk 0:01:59.3]} 35... Kf5 {[%clk
0:03:31.9]} 36. Kd4 {[%clk 0:01:52.3]} 36... Rd8+ {[%clk 0:03:17]} 37. Kc5
{[%clk 0:01:47.5]} 37... Rd2 {[%clk 0:03:13.3]} 38. c4 {[%clk 0:01:36.3]} 38...
Ra2 {[%clk 0:03:07]} 39. Kxc6 {[%clk 0:01:29.5]} 39... Rxa3 {[%clk 0:03:06]} 40.
Ra7 {[%clk 0:01:19.2]} 40... Kg4 {[%clk 0:03:02.7]} 41. Kb5 {[%clk 0:01:11.4]}
41... Kxh4 {[%clk 0:02:57]} 42. c5 {[%clk 0:01:10]} 42... Rb3+ {[%clk
0:02:31.3]} 43. Kc4 {[%clk 0:00:52.7]} 43... Rb8 {[%clk 0:02:23.8]} 44. Rxa4
{[%clk 0:00:45.1]} 44... g5 {[%clk 0:02:22.5]} 45. c6 {[%clk 0:00:41.7]} 45...
g4 {[%clk 0:02:18.1]} 46. Kd5 {[%clk 0:00:41.1]} 46... Kh3 {[%clk 0:02:15.2]}
47. Kd6 {[%clk 0:00:40.2]} 47... g3 {[%clk 0:02:10]} 48. Kd7 {[%clk 0:00:20.1]}
48... g2 {[%clk 0:02:04.9]} 49. Ra1 {[%clk 0:00:17.4]} 49... Kh2 {[%clk
0:01:08.9]} 50. c7 {[%clk 0:00:16.2]} 50... Rb7 {[%clk 0:01:00.7]} 51. Kc6
{[%clk 0:00:08.6]} 51... Rb2 {[%clk 0:00:48.2]} 52. c8=Q {[%clk 0:00:06.9]}
52... Rc2+ {[%clk 0:00:47.1]} 53. Kb7 {[%clk 0:00:04.8]} 53... Rxc8 {[%clk
0:00:43.8]} 54. Kxc8 {[%clk 0:00:04.2]} 54... Kh3 {[%clk 0:00:41.2]} 55. Kc7
{[%clk 0:00:03.5]} 55... Kh2 {[%clk 0:00:39.7]} 56. Kd6 {[%clk 0:00:03.1]} 56...
Kh3 {[%clk 0:00:38.3]} 57. Ke5 {[%clk 0:00:02.7]} 57... Kh2 {[%clk 0:00:35.9]}
58. Ke4 {[%clk 0:00:02.4]} 58... g1=R {[%clk 0:00:28]} 59. Rxg1 {[%clk
0:00:00.3]} 59... Kxg1 {[%clk 0:00:25.9]} 1/2-1/2

[Event "Live Chess"]
[Site "Chess.com"]
[Date "2023.05.21"]
[Round "-"]
[White "manthanit"]
[Black "chessfiction"]
[Result "0-1"]
[WhiteElo "1050"]
[BlackElo "2347"]
[TimeControl "300"]
[EndTime "18:55:09 PDT"]
[Termination "chessfiction won by checkmate"]

1. e4 {[%clk 0:04:59.6]} 1... e5 {[%clk 0:04:58.6]} 2. Nf3 {[%clk 0:04:57.7]}
2... Bc5 {[%clk 0:04:58]} 3. Bc4 {[%clk 0:04:56.5]} 3... d6 {[%clk 0:04:56.9]}
4. d3 {[%clk 0:04:54.7]} 4... Bg4 {[%clk 0:04:56.1]} 5. h3 {[%clk 0:04:49.7]}
5... Bh5 {[%clk 0:04:54.2]} 6. Nc3 {[%clk 0:04:43.2]} 6... Nc6 {[%clk
0:04:53.1]} 7. Nd5 {[%clk 0:04:40.9]} 7... Nge7 {[%clk 0:04:49.9]} 8. Bg5 {[%clk
0:04:38.9]} 8... h6 {[%clk 0:04:48.5]} 9. Bh4 {[%clk 0:04:37.9]} 9... g5 {[%clk
0:04:46.8]} 10. Bg3 {[%clk 0:04:36.5]} 10... Ng6 {[%clk 0:04:45.6]} 11. Bh2
{[%clk 0:04:23.3]} 11... Nf4 {[%clk 0:04:43.8]} 12. O-O {[%clk 0:04:10.9]} 12...
Rg8 {[%clk 0:04:38.6]} 13. c3 {[%clk 0:04:00.4]} 13... g4 {[%clk 0:04:37.5]} 14.
hxg4 {[%clk 0:03:34.6]} 14... Rxg4 {[%clk 0:04:34.4]} 15. Bxf4 {[%clk
0:03:29.1]} 15... exf4 {[%clk 0:04:34.3]} 16. d4 {[%clk 0:03:11.8]} 16... Bb6
{[%clk 0:04:29.5]} 17. e5 {[%clk 0:03:07.4]} 17... dxe5 {[%clk 0:04:19.3]} 18.
dxe5 {[%clk 0:03:05.9]} 18... Rg6 {[%clk 0:04:17.8]} 19. Nf6+ {[%clk 0:03:02.8]}
19... Rxf6 {[%clk 0:04:16.3]} 20. exf6 {[%clk 0:03:00.8]} 20... Qxf6 {[%clk
0:04:14]} 21. Re1+ {[%clk 0:02:57.8]} 21... Kf8 {[%clk 0:04:12.8]} 22. Qd7
{[%clk 0:02:51.3]} 22... Rd8 {[%clk 0:04:08.9]} 23. Qh3 {[%clk 0:02:45.8]} 23...
Bxf3 {[%clk 0:03:51.5]} 24. Qxf3 {[%clk 0:02:38.9]} 24... Rd2 {[%clk 0:03:47.7]}
25. Rf1 {[%clk 0:02:33.5]} 25... Ne5 {[%clk 0:03:45]} 26. Qxb7 {[%clk
0:02:22.7]} 26... f3 {[%clk 0:03:30.9]} 27. Qc8+ {[%clk 0:02:21.1]} 27... Kg7
{[%clk 0:03:29.3]} 28. Qh3 {[%clk 0:02:19.7]} 28... Nxc4 {[%clk 0:03:24.6]} 29.
Qxf3 {[%clk 0:02:07]} 29... Qxf3 {[%clk 0:03:22.5]} 30. gxf3 {[%clk 0:02:06.2]}
30... Nxb2 {[%clk 0:03:21.4]} 31. Rab1 {[%clk 0:01:56.3]} 31... Nd3 {[%clk
0:03:13.8]} 32. Kh1 {[%clk 0:01:51.3]} 32... Nxf2+ {[%clk 0:03:08.4]} 33. Kg1
{[%clk 0:01:45.7]} 33... Nd1+ {[%clk 0:03:02.7]} 34. Kh1 {[%clk 0:01:38.3]}
34... Nxc3 {[%clk 0:03:02.6]} 35. Rbe1 {[%clk 0:01:31.1]} 35... Ne2 {[%clk
0:03:00.9]} 36. f4 {[%clk 0:01:16.6]} 36... Ng3# {[%clk 0:02:59.7]} 0-1

[Event "Live Chess"]
[Site "Chess.com"]
[Date "2023.05.21"]
[Round "-"]
[White "ramses-IIG"]
[Black "LiamBellwood"]
[Result "1-0"]
[WhiteElo "853"]
[BlackElo "2029"]
[TimeControl "300"]
[EndTime "18:56:10 PDT"]
[Termination "ramses-IIG won by resignation"]

1. e4 {[%clk 0:04:58.8]} 1... e6 {[%clk 0:04:59.9]} 2. Nf3 {[%clk 0:04:58.1]}
2... d5 {[%clk 0:04:57.9]} 3. e5 {[%clk 0:04:56]} 3... c5 {[%clk 0:04:57]} 4. d4
{[%clk 0:04:55.9]} 4... Nc6 {[%clk 0:04:56.5]} 5. c3 {[%clk 0:04:53.4]} 5... Bd7
{[%clk 0:04:55.5]} 6. Bg5 {[%clk 0:04:49.9]} 6... Qb6 {[%clk 0:04:52.3]} 7. b3
{[%clk 0:04:46.7]} 7... Nge7 {[%clk 0:04:50.2]} 8. Nbd2 {[%clk 0:04:34.4]} 8...
Nf5 {[%clk 0:04:48.3]} 9. Bd3 {[%clk 0:04:29.2]} 9... cxd4 {[%clk 0:04:40.7]}
10. Bxf5 {[%clk 0:04:20.4]} 10... exf5 {[%clk 0:04:30]} 11. cxd4 {[%clk
0:04:18.6]} 11... Nxd4 {[%clk 0:04:26.2]} 12. Be3 {[%clk 0:04:00.5]} 12... Bc5
{[%clk 0:04:21.8]} 13. O-O {[%clk 0:03:53.7]} 13... Nxf3+ {[%clk 0:04:19.6]} 14.
Qxf3 {[%clk 0:03:50.6]} 14... Bxe3 {[%clk 0:04:18.5]} 15. fxe3 {[%clk
0:03:48.4]} 15... Be6 {[%clk 0:04:17.8]} 16. Qg3 {[%clk 0:03:29.1]} 16... O-O
{[%clk 0:04:12.5]} 17. Rae1 {[%clk 0:03:20.1]} 17... Rac8 {[%clk 0:04:10.5]} 18.
Nf3 {[%clk 0:03:17.6]} 18... Rc2 {[%clk 0:03:59.5]} 19. Ng5 {[%clk 0:03:12.6]}
19... Rxa2 {[%clk 0:03:48.7]} 20. Qh3 {[%clk 0:03:05.2]} 20... h6 {[%clk
0:03:46]} 21. Nxe6 {[%clk 0:02:53.1]} 21... fxe6 {[%clk 0:03:42.6]} 22. Rb1
{[%clk 0:02:49.2]} 22... f4 {[%clk 0:03:41.2]} 23. Kh1 {[%clk 0:02:34.4]} 23...
Ra3 {[%clk 0:03:39.3]} 24. exf4 {[%clk 0:02:31.9]} 24... a5 {[%clk 0:03:21.7]}
25. f5 {[%clk 0:02:28.3]} 25... a4 {[%clk 0:03:06.7]} 26. f6 {[%clk 0:02:27.2]}
26... Rxb3 {[%clk 0:02:54.3]} 27. Rxb3 {[%clk 0:02:24.7]} 27... axb3 {[%clk
0:02:48.6]} 28. g3 {[%clk 0:02:09.8]} 28... b2 {[%clk 0:02:46.4]} 29. Rb1 {[%clk
0:02:07.3]} 29... Rc8 {[%clk 0:02:26]} 30. Qg4 {[%clk 0:02:05.9]} 30... Rc1+
{[%clk 0:02:23.5]} 31. Kg2 {[%clk 0:02:04.1]} 31... Qg1+ {[%clk 0:01:37.5]} 32.
Kh3 {[%clk 0:02:00.3]} 32... Qf1+ {[%clk 0:01:33.2]} 33. Kh4 {[%clk 0:01:58.5]}
33... g5+ {[%clk 0:01:27.7]} 34. Kh5 {[%clk 0:01:42.6]} 34... Kh7 {[%clk
0:00:43.6]} 35. Rxb2 {[%clk 0:01:02.8]} 35... Qd1 {[%clk 0:00:37.1]} 36. Qxd1
{[%clk 0:00:56.3]} 36... Rxd1 {[%clk 0:00:37]} 37. Rxb7+ {[%clk 0:00:53.1]}
37... Kg8 {[%clk 0:00:36.5]} 38. Kxh6 {[%clk 0:00:45.9]} 38... Kf8 {[%clk
0:00:24.8]} 39. Kg6 {[%clk 0:00:34.6]} 39... Ke8 {[%clk 0:00:21.8]} 40. Kg7
{[%clk 0:00:32.9]} 40... d4 {[%clk 0:00:13.4]} 41. f7+ {[%clk 0:00:31.9]} 1-0

[Event "Live Chess"]
[Site "Chess.com"]
[Date "2023.05.21"]
[Round "-"]
[White "GEMdzq"]
[Black "romchyk1219"]
[Result "1-0"]
[WhiteElo "2266"]
[BlackElo "639"]
[TimeControl "300"]
[EndTime "18:56:26 PDT"]
[Termination "GEMdzq won by checkmate"]

1. e4 {[%clk 0:04:58.3]} 1... d6 {[%clk 0:04:57.8]} 2. d4 {[%clk 0:04:55.8]}
2... Nf6 {[%clk 0:04:57.2]} 3. Nc3 {[%clk 0:04:54.6]} 3... g6 {[%clk 0:04:56.7]}
4. Bc4 {[%clk 0:04:52.5]} 4... Bg7 {[%clk 0:04:55.4]} 5. Nge2 {[%clk 0:04:43.6]}
5... O-O {[%clk 0:04:53.9]} 6. O-O {[%clk 0:04:42.3]} 6... Nc6 {[%clk
0:04:52.4]} 7. f3 {[%clk 0:04:39.7]} 7... Re8 {[%clk 0:04:44.7]} 8. Be3 {[%clk
0:04:38.5]} 8... e5 {[%clk 0:04:44]} 9. Qd2 {[%clk 0:04:31.4]} 9... exd4 {[%clk
0:04:42.6]} 10. Nxd4 {[%clk 0:04:31.3]} 10... Be6 {[%clk 0:04:40.6]} 11. Nxe6
{[%clk 0:04:29.6]} 11... Qe7 {[%clk 0:04:33.8]} 12. Ng5 {[%clk 0:04:27.3]} 12...
Qe5 {[%clk 0:04:28.2]} 13. Nxf7 {[%clk 0:04:22.9]} 13... Qe7 {[%clk 0:04:25.4]}
14. Nxd6+ {[%clk 0:04:19.8]} 14... Kf8 {[%clk 0:04:22.2]} 15. Nxe8 {[%clk
0:04:18.7]} 15... Kxe8 {[%clk 0:04:21.7]} 16. Nd5 {[%clk 0:04:11.8]} 16... Qd7
{[%clk 0:04:19.7]} 17. Nxf6+ {[%clk 0:04:10.1]} 17... Bxf6 {[%clk 0:04:18]} 18.
Qxd7+ {[%clk 0:04:09.8]} 18... Kxd7 {[%clk 0:04:17.1]} 19. Rad1+ {[%clk
0:04:09.5]} 19... Ke7 {[%clk 0:04:15.8]} 20. Bc5+ {[%clk 0:04:08.6]} 20... Ke8
{[%clk 0:04:14.4]} 21. Bb5 {[%clk 0:04:07.2]} 21... Rd8 {[%clk 0:04:09.6]} 22.
Rxd8+ {[%clk 0:04:04.9]} 22... Kxd8 {[%clk 0:04:08.6]} 23. Bxc6 {[%clk
0:04:04.2]} 23... bxc6 {[%clk 0:04:07.4]} 24. Rd1+ {[%clk 0:04:04.1]} 24... Kc8
{[%clk 0:04:06.3]} 25. Bxa7 {[%clk 0:04:02.2]} 25... Kb7 {[%clk 0:04:06.2]} 26.
Bc5 {[%clk 0:04:01.3]} 26... Ka6 {[%clk 0:04:04.9]} 27. c4 {[%clk 0:04:00.5]}
27... Ka5 {[%clk 0:04:04.1]} 28. Rd7 {[%clk 0:03:57.1]} 28... Bxb2 {[%clk
0:04:03.4]} 29. Rxc7 {[%clk 0:03:55.5]} 29... Ka4 {[%clk 0:04:01.8]} 30. Ra7#
{[%clk 0:03:53]} 1-0